Department,Entity,Payment date,Transaction Number,Invoice Amount,Supplier ,Account Description
FCO,FCO,07/04/2015,"5,020,401","36,975.28",ASPAUD CO,Vehicles: Materials and Parts
FCO,FCO,07/04/2015,"5,020,666","94,171.68",AKIS BAGIMSIZ DENETIM VE SMMM AS,UKTI HQ Allocation- Investment
FCO,FCO,07/04/2015,"5,020,670","250,000",MULTINATIONAL FORCE AND OBSERVERS,Programme Spend (Oracle Projects Control Account)
FCO,FCO,07/04/2015,"5,020,673","177,654.70",AL ISLAAX CAR SALES AND RENT,Programme Spend (Oracle Projects Control Account)
FCO,FCO,07/04/2015,"5,020,679","41,181.40",GLOBAL PARTNERS GOVERNANCE PRACTICE LTD,Programme Spend (Oracle Projects Control Account)
FCO,FCO,07/04/2015,"5,020,688","43,561.09",MEDIA DIVERSITY INSTITUTE,Programme Spend (Oracle Projects Control Account)
FCO,FCO,14/04/2015,"5,021,320","26,663.05",AMERICAN DREW FURNITURE,"Purchase of Furniture, Fittings and Domestic Appliances"
FCO,FCO,10/04/2015,"5,021,454","30,000",CARBON TRUST ADVISORY LTD,Office Support Services
FCO,FCO,08/04/2015,"5,021,457","39,857.33",CAPGEMINI UK PLC,Information Systems Maintenance
FCO,FCO,08/04/2015,"5,021,459","63,498.88",CAPGEMINI UK PLC,Information Systems Maintenance
FCO,FCO,08/04/2015,"5,021,507","63,438.83",ADAM SMITH INTERNATIONAL,Programme Spend (Oracle Projects Control Account)
FCO,FCO,08/04/2015,"5,021,557","43,875",BRAVOSOLUTION UK LTD,Non-Capital Expenditure Re: IT Projects (Oracle Projects Control Account)
FCO,FCO,08/04/2015,"5,021,570","43,932.28",ISIS INNOVATION LIMITED,Programme Spend (Oracle Projects Control Account)
FCO,FCO,10/04/2015,"5,021,622","80,595",PHYSICIANS FOR HUMAN RIGHTS INC,Programme Spend (Oracle Projects Control Account)
FCO,FCO,10/04/2015,"5,021,653","28,596",PHYSICIANS FOR HUMAN RIGHTS INC,Programme Spend (Oracle Projects Control Account)
FCO,FCO,08/04/2015,"5,021,666","78,308",CONCILIATION RESOURCES,Programme Spend (Oracle Projects Control Account)
FCO,FCO,15/04/2015,"5,021,694","25,000",HM TREASURY,Programme Spend (Oracle Projects Control Account)
FCO,FCO,10/04/2015,"5,022,716","318,019.20",MSECURE LIMITED,Assets Under Construction (Oracle PA Control Account)
FCO,FCO,09/04/2015,"5,022,762","-25,650",BURN RITE,Assets Under Construction (Oracle PA Control Account)
FCO,FCO,09/04/2015,"5,022,767","25,650",BURN RITE,Assets Under Construction (Oracle PA Control Account)
FCO,FCO,09/04/2015,"5,022,832","108,144.50",MORPHO DETECTION UK LIMITED,Programme Spend (Oracle Projects Control Account)
FCO,FCO,09/04/2015,"5,022,834","54,007.26",MORPHO DETECTION UK LIMITED,Programme Spend (Oracle Projects Control Account)
FCO,FCO,09/04/2015,"5,022,857","91,673",CAPITA PROPERTY AND INFRASTRUCTURE LTD,Assets Under Construction (Oracle PA Control Account)
FCO,FCO,09/04/2015,"5,022,864","30,000",CAMBRIDGE CONSULTANTS,Assets Under Construction (Oracle PA Control Account)
FCO,FCO,21/04/2015,"5,022,866","73,915",CAMBRIDGE CONSULTANTS,Assets Under Construction (Oracle PA Control Account)
FCO,FCO,09/04/2015,"5,022,895","66,048",ORGANISATION FOR ECONOMIC CO OPERATION AND DEVELOPMENT OECD,Programme Spend (Oracle Projects Control Account)
FCO,FCO,09/04/2015,"5,022,984","82,832.70",COMPUTACENTER UK LTD,Assets Under Construction (Oracle PA Control Account)
FCO,FCO,10/04/2015,"5,023,138","29,141.12",STEEN RASMUSSEN APS,Assets Under Construction (Oracle PA Control Account)
FCO,FCO,14/04/2015,"5,023,242","101,324",DIPLOMAT FREIGHT SERVICES LTD(DFS),Programme Spend (Oracle Projects Control Account)
FCO,FCO,21/04/2015,"5,023,501","39,662.28",RANGER PROTECTION AND SECURITY COMPANY LTD,Local Guards
FCO,FCO,07/04/2015,"5,023,574","54,792.88",ERNST AND YOUNG ADVISORY SERVICES,Programme Spend (Oracle Projects Control Account)
FCO,FCO,10/04/2015,"5,023,673","44,000",NADRA,Programme Spend (Oracle Projects Control Account)
FCO,FCO,10/04/2015,"5,023,814","36,265.56",TORCHLIGHT SOLUTIONS LTD,Programme Spend (Oracle Projects Control Account)
FCO,FCO,10/04/2015,"5,023,884","30,936.44",MME NGABALA OU M SODONON,Programme Spend (Oracle Projects Control Account)
FCO,FCO,17/04/2015,"5,024,339","62,600",BAE SYSTEMS APPLIED INTELLIGENCE LIMITED,Specialist Contractors
FCO,FCO,13/04/2015,"5,024,480","26,224",CENTRAL HALL WESTMINSTER,Specialist Training (Devolved)
FCO,FCO,13/04/2015,"5,024,578","25,448.92",AVON BARRIER CORPORATION LTD,Security: Works Non-Residential
FCO,FCO,15/04/2015,"5,024,690","1,559,657",COMPUTACENTER UK LTD,IT/IS Consultancy
FCO,FCO,15/04/2015,"5,024,704","182,995.20",COMPUTACENTER UK LTD,IT/IS Consultancy
FCO,FCO,13/04/2015,"5,024,707","70,557.87",THE LAW SOCIETY OF ENGLAND & WALES,Programme Spend (Oracle Projects Control Account)
FCO,FCO,24/04/2015,"5,024,716","104,119.30",CAPITA GROUP PLC,"HR, Training and Education Consultancy"
FCO,FCO,17/04/2015,"5,024,966","28,993",THE BRITISH RUSSIAN CENTRE AND THE BRITISH EAST WEST CENTER,Programme Spend (Oracle Projects Control Account)
FCO,FCO,15/04/2015,"5,024,973","99,905.73",SECURITY SERVICES GROUP,Misc Security Payments
FCO,FCO,13/04/2015,"5,024,978","28,394.87","GUANGZHOU INSTITUTE OF ENERGY CONVERSION, CHINESE ACADEMY OF SCIENCE",Programme Spend (Oracle Projects Control Account)
FCO,FCO,15/04/2015,"5,024,991","49,006.55",HOTELLINE ,Meals
FCO,FCO,21/04/2015,"5,025,740","66,265.87",TOYOTA EAST AFRICA LTD,Recharge Suspense Account (Oracle PA Control Account)
FCO,FCO,14/04/2015,"5,026,020","49,170.99",NI CO OPERATION OVERSEAS NI CO LTD,Programme Spend (Oracle Projects Control Account)
FCO,FCO,14/04/2015,"5,026,027","32,156.41",NI CO OPERATION OVERSEAS NI CO LTD,Programme Spend (Oracle Projects Control Account)
FCO,FCO,14/04/2015,"5,026,124","28,436.60",ENTERPRISES GENERALES LEGLISE S.A.,Construction Project more than £10k
FCO,FCO,14/04/2015,"5,026,174","28,380.14",SUPPLY PLUS,Estates - Other Machinery and Equipment
FCO,FCO,16/04/2015,"5,026,395","30,000",ROYAL AGRICULTURAL COLLEGE,Programme Spend (Oracle Projects Control Account)
FCO,FCO,14/04/2015,"5,026,406","42,000",NINIAN SOLUTIONS LIMITED,IT/IS Consultancy
FCO,FCO,16/04/2015,"5,026,730","28,854.14",CHINA INTERNATIONAL TRADING,Property Maintenance Overseas Residential
FCO,FCO,24/04/2015,"5,026,758","73,815.05",MSECURE LIMITED,Assets Under Construction (Oracle PA Control Account)
FCO,FCO,15/04/2015,"5,026,761","82,697.36",HEWLETT PACKARD LTD,IT/IS Consultancy
FCO,FCO,17/04/2015,"5,026,763","280,561",MSECURE LIMITED,Assets Under Construction (Oracle PA Control Account)
FCO,FCO,17/04/2015,"5,026,973","1,000,000",SPECIAL TRIBUNAL FOR LEBANON,Programme Spend (Oracle Projects Control Account)
FCO,FCO,15/04/2015,"5,026,980","886,159",DEFENCE BUSINESS SERVICES FINANCE,Programme Spend (Oracle Projects Control Account)
FCO,FCO,15/04/2015,"5,026,983","318,136",DEFENCE BUSINESS SERVICES FINANCE,Programme Spend (Oracle Projects Control Account)
FCO,FCO,15/04/2015,"5,026,985","510,129",DEFENCE BUSINESS SERVICES FINANCE,Programme Spend (Oracle Projects Control Account)
FCO,FCO,15/04/2015,"5,026,989","287,573",DEFENCE BUSINESS SERVICES FINANCE,Programme Spend (Oracle Projects Control Account)
FCO,FCO,15/04/2015,"5,026,997","315,174",DEFENCE BUSINESS SERVICES FINANCE,Programme Spend (Oracle Projects Control Account)
FCO,FCO,15/04/2015,"5,026,998","134,882",DEFENCE BUSINESS SERVICES FINANCE,Programme Spend (Oracle Projects Control Account)
FCO,FCO,15/04/2015,"5,027,136","878,919.60",GARDA WORLD LTD,UK Mobile Guarding Contract overseas
FCO,FCO,15/04/2015,"5,027,156","37,431.10",CMC AUTOMOBILES LTD,Recharge Suspense Account (Oracle PA Control Account)
FCO,FCO,15/04/2015,"5,027,161","75,137.13",TOYOTA TANZANIA LTD,Recharge Suspense Account (Oracle PA Control Account)
FCO,FCO,15/04/2015,"5,027,181","29,828",DEFENCE BUSINESS SERVICES FINANCE,Programme Spend (Oracle Projects Control Account)
FCO,FCO,15/04/2015,"5,027,233","40,830.36",BRITISH CHAMBER OF COMMERCE FOR MOROCCO,UKTI HQ Allocation- DSO
FCO,FCO,15/04/2015,"5,027,432","25,798.32",ASOCIACION M G EX AC,Representation of the FCO
FCO,FCO,21/04/2015,"5,028,048","25,623.74","FROST REAL ESTATE, INC",Rental Payments - residential
FCO,FCO,16/04/2015,"5,028,183","26,551.84",WILLIAMS LEA,General Information Services
FCO,FCO,16/04/2015,"5,028,236","116,435.20",THE THOMSON FOUNDATION,Programme Spend (Oracle Projects Control Account)
FCO,FCO,16/04/2015,"5,028,329","53,033.55",KOIZA INTERNATIONAL LTD,
FCO,FCO,16/04/2015,"5,028,352","46,723",INTERNATIONAL GOVERNANCE AND RISK LIMITED GOVRISK,Programme Spend (Oracle Projects Control Account)
FCO,FCO,16/04/2015,"5,028,356","26,225.45",GUIDANCE SOFTWARE INC,Information Systems Maintenance
FCO,FCO,16/04/2015,"5,028,375","250,000",OCULUS DEFENCE CONSULTANCY LIMITED,Information Systems Implementation
FCO,FCO,16/04/2015,"5,028,470","97,811",INDEPENDENT DIPLOMATS,Programme Spend (Oracle Projects Control Account)
FCO,FCO,17/04/2015,"5,028,556","116,924.50",BROOKINGS DOHA CENTER,Programme Spend (Oracle Projects Control Account)
FCO,FCO,17/04/2015,"5,028,578","76,504",BAE SYSTEMS APPLIED INTELLIGENCE LIMITED,Specialist Contractors
FCO,FCO,16/04/2015,"5,028,680","46,847.41",FENIX INSIGHT LTD,Programme Spend (Oracle Projects Control Account)
FCO,FCO,22/04/2015,"5,028,848","259,511.20",INTERSERVE FM LTD,Assets Under Construction (Oracle PA Control Account)
FCO,FCO,16/04/2015,"5,028,861","30,050.54",INTERSERVE FM LTD,Construction Project more than £10k
FCO,FCO,20/04/2015,"5,028,918","431,074.90",ISS FACILITY SERVICES LTD FCO OP,FM Interserve BES Maintenance
FCO,FCO,20/04/2015,"5,028,922","55,345.24",ISS FACILITY SERVICES LTD FCO OP,FM Interserve BES Maintenance
FCO,FCO,20/04/2015,"5,028,927","28,425.71",ISS FACILITY SERVICES LTD FCO OP,FM Interserve BES Maintenance
FCO,FCO,20/04/2015,"5,028,930","27,064.24",ISS FACILITY SERVICES LTD FCO OP,FM Interserve BES Maintenance
FCO,FCO,20/04/2015,"5,028,931","121,742.30",ISS FACILITY SERVICES LTD FCO OP,FM Interserve BES Maintenance
FCO,FCO,20/04/2015,"5,028,935","63,652.37",ISS FACILITY SERVICES LTD FCO OP,FM Interserve BES Maintenance
FCO,FCO,20/04/2015,"5,028,943","51,030.11",ISS FACILITY SERVICES LTD FCO OP,FM Interserve BES Maintenance
FCO,FCO,20/04/2015,"5,028,944","32,044.56",ISS FACILITY SERVICES LTD FCO OP,FM Interserve BES Maintenance
FCO,FCO,20/04/2015,"5,028,950","88,927.22",ISS FACILITY SERVICES LTD FCO OP,FM Interserve BES Maintenance
FCO,FCO,20/04/2015,"5,028,953","42,309.52",ISS FACILITY SERVICES LTD FCO OP,FM Interserve BES Maintenance
FCO,FCO,20/04/2015,"5,028,954","25,881.87",ISS FACILITY SERVICES LTD FCO OP,FM Interserve BES Maintenance
FCO,FCO,20/04/2015,"5,028,965","32,211.54",ISS FACILITY SERVICES LTD FCO OP,FM Interserve BES Maintenance
FCO,FCO,20/04/2015,"5,028,967","367,123.40",ISS FACILITY SERVICES LTD FCO OP,FM Interserve BES Maintenance
FCO,FCO,20/04/2015,"5,028,968","99,029.04",ISS FACILITY SERVICES LTD FCO OP,FM Interserve BES Maintenance
FCO,FCO,20/04/2015,"5,028,970","48,415.07",ISS FACILITY SERVICES LTD FCO OP,FM Interserve BES Maintenance
FCO,FCO,20/04/2015,"5,028,971","46,931.87",ISS FACILITY SERVICES LTD FCO OP,FM Interserve BES Maintenance
FCO,FCO,20/04/2015,"5,028,977","25,920.63",ISS FACILITY SERVICES LTD FCO OP,FM Interserve BES Maintenance
FCO,FCO,17/04/2015,"5,028,991","41,873.43",INTERSERVE FM LTD,Construction Project more than £10k
FCO,FCO,17/04/2015,"5,029,020","49,346.18",INTERSERVE FM LTD,Construction Project more than £10k
FCO,FCO,16/04/2015,"5,029,099","30,420",POWER ELECTRICS GENERATORS LTD,Assets Under Construction (Oracle PA Control Account)
FCO,FCO,16/04/2015,"5,029,102","146,391.30",POWER ELECTRICS GENERATORS LTD,Assets Under Construction (Oracle PA Control Account)
FCO,FCO,17/04/2015,"5,029,167","539,799",BAE SYSTEMS APPLIED INTELLIGENCE LIMITED,Specialist Contractors
FCO,FCO,17/04/2015,"5,029,376","29,427.45",INTERNATIONAL CAPITAL TRADING,Rental Payments - residential
FCO,FCO,20/04/2015,"5,029,486","26,486",THE ASSOCIATION FOR ENVIRONMENTAL ECONOMICS AND POLICY OF GUANGDONG,Programme Spend (Oracle Projects Control Account)
FCO,FCO,17/04/2015,"5,030,460","31,650",UNIVERSITY OF EDINBURGH,Programme Spend (Oracle Projects Control Account)
FCO,FCO,17/04/2015,"5,030,832","76,214.93",MEDIA DIVERSITY INSTITUTE,Programme Spend (Oracle Projects Control Account)
FCO,FCO,17/04/2015,"5,030,845","74,258.80",BAE SYSTEMS APPLIED INTELLIGENCE LIMITED,IT/IS Consultancy
FCO,FCO,17/04/2015,"5,030,851","449,250",BACTEC INTERNATIONAL LTD,Programme Spend (Oracle Projects Control Account)
FCO,FCO,22/04/2015,"5,030,923","236,891.60",DEFENCE BUSINESS SERVICES FINANCE,Mod Guarding Services Residential
FCO,FCO,17/04/2015,"5,030,926","32,517.40",TRODAT UK,Programme Spend (Oracle Projects Control Account)
FCO,FCO,17/04/2015,"5,030,930","73,221",GREENSHIELDS COWIE + CO LTD,Assets Under Construction (Oracle PA Control Account)
FCO,FCO,17/04/2015,"5,030,931","118,221.40",BAE SYSTEMS APPLIED INTELLIGENCE LIMITED,Specialist Contractors
FCO,FCO,17/04/2015,"5,030,948","41,929.27",LANGUAGE SERVICES DIRECT,Language Tuition: Essential
FCO,FCO,27/04/2015,"5,030,949","150,065.40",LANGUAGE SERVICES DIRECT,Language Tuition: Essential
FCO,FCO,20/04/2015,"5,032,024","40,124",BUSINESS + HUMAN RIGHTS RESOURCE CENTRE,Programme Spend (Oracle Projects Control Account)
FCO,FCO,20/04/2015,"5,032,596","26,444",LAW ENFORCEMENT INTERNATIONAL LTD,Assets Under Construction (Oracle PA Control Account)
FCO,FCO,20/04/2015,"5,032,658","42,031",TNT EXPRESS,Specialist Contractors
FCO,FCO,21/04/2015,"5,032,747","37,624.96",TITAN CONTAINERS AS,Assets Under Construction (Oracle PA Control Account)
FCO,FCO,21/04/2015,"5,032,765","32,366.82",AL BULOOGE GENERAL TRADING CO.W.L.L,Rental Payments - residential
FCO,FCO,21/04/2015,"5,032,934","2,722,790",MACE LIMITED,Assets Under Construction (Oracle PA Control Account)
FCO,FCO,21/04/2015,"5,033,648","80,081",BBC MEDIA ACTION,Programme Spend (Oracle Projects Control Account)
FCO,FCO,21/04/2015,"5,033,694","62,120.04",BAE SYSTEMS APPLIED INTELLIGENCE LIMITED,Specialist Contractors
FCO,FCO,21/04/2015,"5,033,706","121,244.80",AEGIS DEFENCE SERVICES LTD,Programme Spend (Oracle Projects Control Account)
FCO,FCO,21/04/2015,"5,033,808","26,925.59",INFRASTRUCTURE UK,Programme Spend (Oracle Projects Control Account)
FCO,FCO,21/04/2015,"5,033,922","31,726",INTERNATIONAL ALERT,Programme Spend (Oracle Projects Control Account)
FCO,FCO,21/04/2015,"5,033,983","331,445.90",G4S SECURE SOLUTIONS UK,Manned Guarding Services
FCO,FCO,22/04/2015,"5,034,183","35,000",CBRE LTD,Estates Management Services
FCO,FCO,21/04/2015,"5,034,188","215,957",AEGIS DEFENCE SERVICES LTD,UK Mobile Guarding Contract overseas
FCO,FCO,22/04/2015,"5,034,799","176,208.10",KELLOGG BROWN AND ROOT,Estates Management Services
FCO,FCO,22/04/2015,"5,034,813","187,715.60",BBC MEDIA ACTION,Programme Spend (Oracle Projects Control Account)
FCO,FCO,22/04/2015,"5,034,890","36,423.63",BEIJING ZHONGQIAO INTERNATIONAL TRAVEL LTD,Programme Spend (Oracle Projects Control Account)
FCO,FCO,23/04/2015,"5,035,216","27,982.48",EDAL DRILLING COMPANY,Property Maintenance Overseas Residential
FCO,FCO,22/04/2015,"5,035,324","44,046.88",DOVETAIL CONSTRUCTION LTD,Rental Payments - residential
FCO,FCO,22/04/2015,"5,035,442","34,369.10",DX NETWORK SERVICES,Postal Services
FCO,FCO,22/04/2015,"5,035,482","85,909.09",CAPITA GROUP PLC,"HR, Training and Education Consultancy"
FCO,FCO,22/04/2015,"5,035,538","161,901.60",KELLOGG BROWN AND ROOT,Estates Management Services
FCO,FCO,22/04/2015,"5,035,588","26,772.59",N A MOVING SERVICES LTD,Heavy Baggage
FCO,FCO,22/04/2015,"5,035,614","31,659.78",N A MOVING SERVICES LTD,Heavy Baggage
FCO,FCO,22/04/2015,"5,035,703","76,932",POWER ELECTRICS GENERATORS LTD,Assets Under Construction (Oracle PA Control Account)
FCO,FCO,22/04/2015,"5,035,704","51,476",SAFERWORLD,Programme Spend (Oracle Projects Control Account)
FCO,FCO,29/04/2015,"5,035,724","2,123,918",ORACLE CORPORATION (UK) LTD,Information Systems Maintenance
FCO,FCO,23/04/2015,"5,036,300","68,424.04",CARBON DISCLOSURE PROJECT,Programme Spend (Oracle Projects Control Account)
FCO,FCO,27/04/2015,"5,036,560","57,291.59",BRITISH CHAMBER OF COMMERCE,UKTI HQ Allocation- DSO
FCO,FCO,23/04/2015,"5,037,254","194,289.20",COMPUTACENTER UK LTD,Assets Under Construction (Oracle PA Control Account)
FCO,FCO,23/04/2015,"5,037,259","248,726.40",COMPUTACENTER UK LTD,Assets Under Construction (Oracle PA Control Account)
FCO,FCO,23/04/2015,"5,037,384","50,000",ORGANISATION FOR ECONOMIC CO OPERATION AND DEVELOPMENT OECD,Programme Spend (Oracle Projects Control Account)
FCO,FCO,27/04/2015,"5,037,440","455,801",ARTEOS GMBH,"Electricity Non-Residential, Estates - Other Machinery and Equipment, Pfi : Public/Private Partnership Consultants Fees Non-Residential, Waste Disposal, Water Residential"
FCO,FCO,24/04/2015,"5,038,210","552,407",INTERSERVE FM LTD,Construction Project more than £10k
FCO,FCO,24/04/2015,"5,038,212","42,811.21",INTERSERVE FM LTD,Construction Project more than £10k
FCO,FCO,27/04/2015,"5,038,214","26,434.72",INTERSERVE FM LTD,Construction Project more than £10k
FCO,FCO,24/04/2015,"5,038,215","55,601.40",INTERSERVE FM LTD,Construction Project more than £10k
FCO,FCO,24/04/2015,"5,038,217","28,139.93",INTERSERVE FM LTD,Construction Project more than £10k
FCO,FCO,27/04/2015,"5,038,222","57,585.09",INTERSERVE FM LTD,Construction Project more than £10k
FCO,FCO,24/04/2015,"5,038,224","27,747.05",INTERSERVE FM LTD,Construction Project more than £10k
FCO,FCO,27/04/2015,"5,038,232","51,452.86",ISS FACILITY SERVICES LTD FCO OP - POE,"Bank Charges (Oracle Cash Management Control Account), Electricity Non-Residential, Electricity Residential, Gas Residential, Property Maintenance Overseas Non Residential, Property Maintenance Overseas Residential, Rental Payments - residential, Telephone Call Charges, Water Residential"
FCO,FCO,27/04/2015,"5,038,233","70,880.92",ISS FACILITY SERVICES LTD FCO OP - POE,
FCO,FCO,27/04/2015,"5,038,234","1,151,705",ISS FACILITY SERVICES LTD FCO OP - POE,
FCO,FCO,27/04/2015,"5,038,235","36,043.36",ISS FACILITY SERVICES LTD FCO OP - POE,
FCO,FCO,27/04/2015,"5,038,236","399,763.30",ISS FACILITY SERVICES LTD FCO OP - POE,
FCO,FCO,27/04/2015,"5,038,237","149,450.10",ISS FACILITY SERVICES LTD FCO OP - POE,
FCO,FCO,27/04/2015,"5,038,238","62,136.69",ISS FACILITY SERVICES LTD FCO OP - POE,
FCO,FCO,27/04/2015,"5,038,240","117,356.20",ISS FACILITY SERVICES LTD FCO OP - POE,
FCO,FCO,27/04/2015,"5,038,242","62,979.49",ISS FACILITY SERVICES LTD FCO OP - POE,
FCO,FCO,27/04/2015,"5,038,243","80,294.84",ISS FACILITY SERVICES LTD FCO OP - POE,
FCO,FCO,27/04/2015,"5,038,246","100,030.20",ISS FACILITY SERVICES LTD FCO OP - POE,
FCO,FCO,27/04/2015,"5,038,247","26,146.52",ISS FACILITY SERVICES LTD FCO OP - POE,
FCO,FCO,27/04/2015,"5,038,248","42,279.65",ISS FACILITY SERVICES LTD FCO OP - POE,
FCO,FCO,27/04/2015,"5,038,249","138,550.70",ISS FACILITY SERVICES LTD FCO OP - POE,
FCO,FCO,24/04/2015,"5,038,401","48,533.91",MACE INTERNATIONAL UK LIMITED,Assets Under Construction (Oracle PA Control Account)
FCO,FCO,24/04/2015,"5,038,415","-269,956.70",MACE INTERNATIONAL UK LIMITED,Assets Under Construction (Oracle PA Control Account)
FCO,FCO,24/04/2015,"5,038,416","26,542.23",PACE FUELCARE LIMITED,Fuel Oil Non-Residential
FCO,FCO,24/04/2015,"5,038,922","86,581.65",IOM INTERNATIONAL ORG FOR MIGRATION,Programme Spend (Oracle Projects Control Account)
FCO,FCO,24/04/2015,"5,038,956","35,678",ROYAL BOTANIC GARDENS EDINBURGH,Programme Spend (Oracle Projects Control Account)
FCO,FCO,24/04/2015,"5,039,019","73,597",NATIONAL DEMOCRATIC INSTITUTE,Programme Spend (Oracle Projects Control Account)
FCO,FCO,24/04/2015,"5,039,107","30,528",FCO SERVICES,Assets Under Construction (Oracle PA Control Account)
FCO,FCO,24/04/2015,"5,039,111","31,241.51",FCO SERVICES,IT/IS Consultancy
FCO,FCO,24/04/2015,"5,039,124","35,718.07",FCO SERVICES,Information Systems Under £3000 (non-capitalised)
FCO,FCO,24/04/2015,"5,039,146","-85,909.09",CAPITA GROUP PLC,"HR, Training and Education Consultancy"
FCO,FCO,24/04/2015,"5,039,182","680,000",WESTMINSTER FOUNDATION FOR DEMOCRACY,Programme Spend (Oracle Projects Control Account)
FCO,FCO,24/04/2015,"5,039,218","143,041",FCO SERVICES,Assets Under Construction (Oracle PA Control Account)
FCO,FCO,24/04/2015,"5,039,219","38,789",FCO SERVICES,Assets Under Construction (Oracle PA Control Account)
FCO,FCO,24/04/2015,"5,039,220","105,663.10",FCO SERVICES,
FCO,FCO,24/04/2015,"5,039,351","1,038,864",G4S RISK MANAGEMENT LTD FORMALLY ARMOURGROUP SERVICES LTD,UK Guarding Contracts Overseas
FCO,FCO,24/04/2015,"5,039,356","601,456.70",G4S RISK MANAGEMENT LTD FORMALLY ARMOURGROUP SERVICES LTD,UK Guarding Contracts Overseas
FCO,FCO,24/04/2015,"5,039,382","37,721.34",FCO SERVICES,Assets Under Construction (Oracle PA Control Account)
FCO,FCO,24/04/2015,"5,039,390","34,165",FCO SERVICES,Information Systems Maintenance
FCO,FCO,24/04/2015,"5,039,427","30,716.57",FCO SERVICES,Assets Under Construction (Oracle PA Control Account)
FCO,FCO,24/04/2015,"5,039,508","80,394",FCO SERVICES,Assets Under Construction (Oracle PA Control Account)
FCO,FCO,24/04/2015,"5,039,511","42,017.83",FCO SERVICES,Assets Under Construction (Oracle PA Control Account)
FCO,FCO,27/04/2015,"5,040,698","29,400",OECD,Programme Spend (Oracle Projects Control Account)
FCO,FCO,24/04/2015,"5,040,825","25,533.64",ALISA INTERNATIONAL,Rental Payments - residential
FCO,FCO,27/04/2015,"5,040,905","30,000",FUJITSU SERVICES LIMITED,IT/IS Consultancy
FCO,FCO,27/04/2015,"5,041,358","25,289.46",EXTRASPACE SOLUTIONS,Construction Project more than £10k
FCO,FCO,27/04/2015,"5,041,534","89,931",SIREN ASSOCIATES LTD,Programme Spend (Oracle Projects Control Account)
FCO,FCO,27/04/2015,"5,042,197","28,380",NERC NATURAL ENVIRONMENT RESEARCH COUNCIL,Programme Spend (Oracle Projects Control Account)
FCO,FCO,28/04/2015,"5,042,262","42,482.77",BAKER TILLY BUSINESS SERVICES LTD,Specialist Contractors
FCO,FCO,28/04/2015,"5,042,710","33,306.04",ASCENSION ISLAND GOVERNMENT,Programme Spend (Oracle Projects Control Account)
FCO,FCO,28/04/2015,"5,042,775","34,022.54",BCCT BRITISH CHAMBER COMMERCE TURK,UKTI HQ Allocation- DSO
FCO,FCO,28/04/2015,"5,042,832","29,500",STONEWALL EQUALITY LTD,Programme Spend (Oracle Projects Control Account)
FCO,FCO,29/04/2015,"5,042,901","26,865.65",FCO SERVICES,Assets Under Construction (Oracle PA Control Account)
FCO,FCO,29/04/2015,"5,042,902","89,884.96",FCO SERVICES,Assets Under Construction (Oracle PA Control Account)
FCO,FCO,29/04/2015,"5,042,903","94,480.12",FCO SERVICES,Assets Under Construction (Oracle PA Control Account)
FCO,FCO,29/04/2015,"5,043,580","83,385.54",UPPER QUARTILE LLP,Programme Spend (Oracle Projects Control Account)
FCO,FCO,29/04/2015,"5,043,697","60,043.84",FCO SERVICES,Air Freight Dip Bags - Freight & Clearance Charges
FCO,FCO,29/04/2015,"5,043,775","145,451.60",FCO SERVICES,Air Freight Dip Bags - Freight & Clearance Charges
FCO,FCO,29/04/2015,"5,043,808","60,096.61",FCO SERVICES,Air Freight Dip Bags - Freight & Clearance Charges
FCO,FCO,29/04/2015,"5,043,822","25,482.67",FCO SERVICES,Air Freight Dip Bags - Freight & Clearance Charges
FCO,FCO,29/04/2015,"5,043,920","105,963.60",HEALIX INTERNATIONAL LTD,Fco Healthcare Scheme
FCO,FCO,29/04/2015,"5,043,928","203,050",MICROSOFT LIMITED,IT/IS Consultancy
FCO,FCO,29/04/2015,"5,043,942","91,740.20",CONCERN WORLDWIDE,Programme Spend (Oracle Projects Control Account)
FCO,FCO,29/04/2015,"5,043,955","31,980.71",FCO SERVICES,Assets Under Construction (Oracle PA Control Account)
FCO,FCO,29/04/2015,"5,043,968","153,695.70",FCO SERVICES,Construction Project more than £10k
FCO,FCO,28/04/2015,"5,043,987","39,393.94",ASSOCIATION OF MIDDLE EAST STUDIES,Programme Spend (Oracle Projects Control Account)
FCO,FCO,29/04/2015,"5,043,989","77,000",FCO SERVICES,Assets Under Construction (Oracle PA Control Account)
FCO,FCO,29/04/2015,"5,044,048","268,877",NI CO OPERATION OVERSEAS NI CO LTD,Programme Spend (Oracle Projects Control Account)
FCO,FCO,29/04/2015,"5,044,049","194,885.80",FCO SERVICES,Residential Property Services
FCO,FCO,29/04/2015,"5,044,055","213,373.50",FCO SERVICES,Assets Under Construction (Oracle PA Control Account)
FCO,FCO,29/04/2015,"5,044,057","374,068.70",FCO SERVICES,Assets Under Construction (Oracle PA Control Account)
FCO,FCO,29/04/2015,"5,044,123","64,957.21",FCO SERVICES,Security: Works Non-Residential
FCO,FCO,29/04/2015,"5,044,126","30,000",FCO SERVICES,Security: Works Non-Residential
FCO,FCO,29/04/2015,"5,044,135","36,867",FCO SERVICES,Assets Under Construction (Oracle PA Control Account)
FCO,FCO,29/04/2015,"5,044,171","50,697.61",FCO SERVICES,Residential Property Services
FCO,FCO,29/04/2015,"5,044,204","50,723",CONCORDIS INTERNATIONAL TRUST,Programme Spend (Oracle Projects Control Account)
FCO,FCO,29/04/2015,"5,044,216","54,939.31",FCO SERVICES,Assets Under Construction (Oracle PA Control Account)
FCO,FCO,29/04/2015,"5,044,230","30,408.72",FCO SERVICES,Assets Under Construction (Oracle PA Control Account)
FCO,FCO,29/04/2015,"5,044,245","105,568",FCO SERVICES,Information Systems Maintenance
FCO,FCO,29/04/2015,"5,044,249","34,161.10",FCO SERVICES,Assets Under Construction (Oracle PA Control Account)
FCO,FCO,29/04/2015,"5,044,286","45,000",FCO SERVICES,Security: Works Non-Residential
FCO,FCO,29/04/2015,"5,044,287","57,024.31",FCO SERVICES,IT/IS Consultancy
FCO,FCO,29/04/2015,"5,045,119","30,573.49",FCO SERVICES,Estates - Other Machinery and Equipment
FCO,FCO,30/04/2015,"5,046,146","135,953.40",BEI JING YA ZHOU JIE CHENG ZHUANG,Assets Under Construction (Oracle PA Control Account)
FCO,FCO,30/04/2015,"5,046,309","32,119.92",SUPPLY PLUS,Estates - Other Machinery and Equipment
FCO,FCO,30/04/2015,"5,046,318","131,516.80",WYG,Programme Spend (Oracle Projects Control Account)
FCO,FCO,30/04/2015,"5,047,044","43,980.10",NATIONAL MOTORS COPRORATION,Assets Under Construction (Oracle PA Control Account)
